[Event "Titled Tuesday Blitz March 22 Late 2022"]
[White "Iskusnyh, Sergei"]
[Black "Yuan, Qingyu"]
[WhiteFideId "4120027"]
[BlackFideId "8609772"]
[WhiteElo "2492"]
[BlackElo "2359"]
[Result "1-0"]
[Round "02"]
[TimeControl "180+1"]
[Date "2022.03.22"]
[WhiteClock "0:00:17"]
[BlackClock "0:00:11"]

1. d4 {[%clk 0:03:00]}  Nf6 {[%clk 0:02:59]} 2. c4 {[%clk 0:03:01]}  g6 {[%clk 0:03:00]} 3. g3 {[%clk 0:03:01]}  c6 {[%clk 0:02:59]} 4. Bg2 {[%clk 0:02:59]}  d5 {[%clk 0:03:00]} 5. e3 {[%clk 0:03:00]}  Bg7 {[%clk 0:02:58]} 6. Ne2 {[%clk 0:03:00]}  O-O {[%clk 0:02:58]} 7. O-O {[%clk 0:02:59]}  b6 {[%clk 0:02:50]} 8. b3 {[%clk 0:02:51]}  Ba6 {[%clk 0:02:46]} 9. Nd2 {[%clk 0:02:50]}  Nbd7 {[%clk 0:02:45]} 10. Ba3 {[%clk 0:02:47]}  Rc8 {[%clk 0:02:43]} 11. Rc1 {[%clk 0:02:40]}  Re8 {[%clk 0:02:38]} 12. Nc3 {[%clk 0:02:34]}  e5 {[%clk 0:02:25]} 13. Re1 {[%clk 0:02:21]}  exd4 {[%clk 0:01:55]} 14. exd4 {[%clk 0:02:22]}  Nf8 {[%clk 0:01:45]} 15. Rxe8 {[%clk 0:02:11]}  Qxe8 {[%clk 0:01:45]} 16. cxd5 {[%clk 0:02:06]}  cxd5 {[%clk 0:01:43]} 17. Nxd5 {[%clk 0:02:05]}  Rxc1 {[%clk 0:01:22]} 18. Qxc1 {[%clk 0:02:05]}  Nxd5 {[%clk 0:01:20]} 19. Bxd5 {[%clk 0:02:06]}  Bxd4 {[%clk 0:01:20]} 20. Ne4 {[%clk 0:01:50]}  Bc8 {[%clk 0:00:42]} 21. Bxf7+ {[%clk 0:01:26]}  Qxf7 {[%clk 0:00:39]} 22. Qxc8 {[%clk 0:01:26]}  Bg7 {[%clk 0:00:30]} 23. Ng5 {[%clk 0:01:16]}  Qd5 {[%clk 0:00:20]} 24. h4 {[%clk 0:01:14]}  h6 {[%clk 0:00:19]} 25. Nh3 {[%clk 0:01:04]}  Qe6 {[%clk 0:00:18]} 26. Qxe6+ {[%clk 0:00:54]}  Nxe6 {[%clk 0:00:19]} 27. Kf1 {[%clk 0:00:51]}  Kf7 {[%clk 0:00:19]} 28. Ng1 {[%clk 0:00:50]}  Nd4 {[%clk 0:00:18]} 29. Ne2 {[%clk 0:00:48]}  Nf3 {[%clk 0:00:17]} 30. Bc1 {[%clk 0:00:44]}  g5 {[%clk 0:00:16]} 31. hxg5 {[%clk 0:00:41]}  hxg5 {[%clk 0:00:17]} 32. g4 {[%clk 0:00:41]}  Bf6 {[%clk 0:00:16]} 33. Kg2 {[%clk 0:00:41]}  Ne5 {[%clk 0:00:10]} 34. f3 {[%clk 0:00:38]}  Nd3 {[%clk 0:00:10]} 35. Bd2 {[%clk 0:00:37]}  Ke6 {[%clk 0:00:09]} 36. Ng3 {[%clk 0:00:36]}  Kd5 {[%clk 0:00:09]} 37. Ne4 {[%clk 0:00:36]}  Be7 {[%clk 0:00:07]} 38. Bxg5 {[%clk 0:00:35]}  Bxg5 {[%clk 0:00:06]} 39. Nxg5 {[%clk 0:00:34]}  Nc1 {[%clk 0:00:07]} 40. Ne4 {[%clk 0:00:29]}  Nxa2 {[%clk 0:00:07]} 41. g5 {[%clk 0:00:29]}  a5 {[%clk 0:00:05]} 42. Kg3 {[%clk 0:00:24]}  Ke6 {[%clk 0:00:04]} 43. Kg4 {[%clk 0:00:24]}  Nc1 {[%clk 0:00:02]} 44. f4 {[%clk 0:00:24]}  Nxb3 {[%clk 0:00:02]} 45. f5+ {[%clk 0:00:24]}  Kf7 {[%clk 0:00:03]} 46. g6+ {[%clk 0:00:24]}  Kg7 {[%clk 0:00:03]} 47. Kg5 {[%clk 0:00:23]}  Nd4 {[%clk 0:00:04]} 48. f6+ {[%clk 0:00:24]}  Kf8 {[%clk 0:00:03]} 49. Kh6 {[%clk 0:00:20]}  Nf5+ {[%clk 0:00:03]} 50. Kh7 {[%clk 0:00:20]}  a4 {[%clk 0:00:03]} 51. g7+ {[%clk 0:00:20]}  Nxg7 {[%clk 0:00:03]} 52. fxg7+ {[%clk 0:00:21]}  Ke7 {[%clk 0:00:04]} 53. g8=Q {[%clk 0:00:21]}  a3 {[%clk 0:00:05]} 54. Qb3 {[%clk 0:00:21]}  b5 {[%clk 0:00:05]} 55. Qxb5 {[%clk 0:00:21]}  Ke6 {[%clk 0:00:06]} 56. Qa5 {[%clk 0:00:21]}  a2 {[%clk 0:00:07]} 57. Qxa2+ {[%clk 0:00:21]}  Ke5 {[%clk 0:00:08]} 58. Kg6 {[%clk 0:00:21]}  Kf4 {[%clk 0:00:09]} 59. Qe2 {[%clk 0:00:19]}  Ke5 {[%clk 0:00:08]} 60. Ng5+ {[%clk 0:00:19]}  Kf4 {[%clk 0:00:09]} 61. Qe4+ {[%clk 0:00:18]}  Kg3 {[%clk 0:00:10]} 62. Qf3+ {[%clk 0:00:18]}  Kh2 {[%clk 0:00:11]} 63. Qe2+ {[%clk 0:00:17]}  Kg3 {[%clk 0:00:11]} 64. Qf3+ {[%clk 0:00:17]}  Kh4 {[%clk 0:00:11]} 65. Qh3# {[%clk 0:00:17]} 1-0


[Site "https://www.chess.com"]

[Event "Titled Tuesday Blitz March 22 Late 2022"]
[White "Jaferian, Koosha"]
[Black "Kosteniuk, Alexandra"]
[WhiteFideId "12507440"]
[BlackFideId "4128125"]
[WhiteElo "2030"]
[BlackElo "2469"]
[Result "0-1"]
[Round "02"]
[TimeControl "180+1"]
[Date "2022.03.22"]
[WhiteClock "0:00:02"]
[BlackClock "0:00:34"]

1. e4 {[%clk 0:02:54]}  c6 {[%clk 0:02:57]} 2. d4 {[%clk 0:02:48]}  d5 {[%clk 0:02:57]} 3. exd5 {[%clk 0:02:49]}  cxd5 {[%clk 0:02:58]} 4. Bd3 {[%clk 0:02:50]}  Nc6 {[%clk 0:02:57]} 5. c3 {[%clk 0:02:50]}  Nf6 {[%clk 0:02:57]} 6. Bf4 {[%clk 0:02:49]}  Bg4 {[%clk 0:02:52]} 7. Qb3 {[%clk 0:02:49]}  Qd7 {[%clk 0:02:50]} 8. Nd2 {[%clk 0:02:49]}  e6 {[%clk 0:02:50]} 9. Ngf3 {[%clk 0:02:48]}  Bxf3 {[%clk 0:02:48]} 10. Nxf3 {[%clk 0:02:48]}  Bd6 {[%clk 0:02:45]} 11. Bxd6 {[%clk 0:02:42]}  Qxd6 {[%clk 0:02:45]} 12. O-O {[%clk 0:02:42]}  O-O {[%clk 0:02:43]} 13. Rae1 {[%clk 0:02:42]}  Qc7 {[%clk 0:02:39]} 14. Qd1 {[%clk 0:02:15]}  Rfe8 {[%clk 0:02:36]} 15. Ne5 {[%clk 0:02:10]}  Nxe5 {[%clk 0:02:26]} 16. Rxe5 {[%clk 0:01:59]}  Nd7 {[%clk 0:02:24]} 17. Re3 {[%clk 0:01:58]}  Nf8 {[%clk 0:02:22]} 18. Qg4 {[%clk 0:01:42]}  f5 {[%clk 0:02:17]} 19. Qe2 {[%clk 0:01:40]}  Qf7 {[%clk 0:01:59]} 20. Re1 {[%clk 0:01:36]}  Re7 {[%clk 0:01:54]} 21. Qc2 {[%clk 0:01:23]}  Ng6 {[%clk 0:01:51]} 22. Qb3 {[%clk 0:01:06]}  b6 {[%clk 0:01:35]} 23. Bf1 {[%clk 0:00:43]}  f4 {[%clk 0:01:32]} 24. Rh3 {[%clk 0:00:37]}  e5 {[%clk 0:01:26]} 25. dxe5 {[%clk 0:00:34]}  Rxe5 {[%clk 0:01:25]} 26. Rxe5 {[%clk 0:00:34]}  Nxe5 {[%clk 0:01:25]} 27. Qc2 {[%clk 0:00:31]}  g6 {[%clk 0:01:25]} 28. Qd2 {[%clk 0:00:24]}  Rd8 {[%clk 0:01:23]} 29. Qd4 {[%clk 0:00:18]}  Qf5 {[%clk 0:01:20]} 30. Bd3 {[%clk 0:00:16]}  Qf6 {[%clk 0:01:10]} 31. Kf1 {[%clk 0:00:06]}  Kg7 {[%clk 0:01:09]} 32. a4 {[%clk 0:00:04]}  h5 {[%clk 0:01:02]} 33. g3 {[%clk 0:00:04]}  f3 {[%clk 0:00:51]} 34. Rh4 {[%clk 0:00:03]}  Ng4 {[%clk 0:00:51]} 35. h3 {[%clk 0:00:02]}  Qxd4 {[%clk 0:00:43]} 36. cxd4 {[%clk 0:00:03]}  Rc8 {[%clk 0:00:40]} 37. Ke1 {[%clk 0:00:01]}  Re8+ {[%clk 0:00:40]} 38. Kf1 {[%clk 0:00:01]}  Nf6 {[%clk 0:00:35]} 39. Rf4 {[%clk 0:00:01]}  Ne4 {[%clk 0:00:36]} 40. Rxf3 {[%clk 0:00:02]}  Nd2+ {[%clk 0:00:36]} 41. Kg2 {[%clk 0:00:03]}  Nxf3 {[%clk 0:00:36]} 42. Kxf3 {[%clk 0:00:04]}  Re1 {[%clk 0:00:36]} 43. Bb5 {[%clk 0:00:03]}  Kf6 {[%clk 0:00:35]} 44. Bc6 {[%clk 0:00:04]}  Re4 {[%clk 0:00:35]} 45. Bxd5 {[%clk 0:00:03]}  Rxd4 {[%clk 0:00:35]} 46. Bc6 {[%clk 0:00:04]}  Rb4 {[%clk 0:00:35]} 47. Bb5 {[%clk 0:00:01]}  Rxb2 {[%clk 0:00:35]} 48. g4 {[%clk 0:00:02]}  Rb3+ {[%clk 0:00:34]} 49. Kg2 {[%clk 0:00:02]}  hxg4 {[%clk 0:00:34]} 50. hxg4 {[%clk 0:00:03]}  g5 {[%clk 0:00:34]} 51. Bd7 {[%clk 0:00:04]}  Ke5 {[%clk 0:00:34]} 52. Bb5 {[%clk 0:00:02]}  Kf4 {[%clk 0:00:34]} 53. Bd7 {[%clk 0:00:02]}  a6 {[%clk 0:00:34]} 0-1


[Site "https://www.chess.com"]

[Event "Titled Tuesday Blitz March 22 Late 2022"]
[White "Karttunen, Mika"]
[Black "Bryakin, Mikhail"]
[WhiteFideId "502081"]
[BlackFideId "4165314"]
[WhiteElo "2343"]
[BlackElo "2417"]
[Result "1-0"]
[Round "02"]
[TimeControl "180+1"]
[Date "2022.03.22"]
[WhiteClock "0:00:13"]
[BlackClock "0:00:01"]

1. e4 {[%clk 0:03:00]}  d6 {[%clk 0:02:52]} 2. d4 {[%clk 0:03:00]}  Nf6 {[%clk 0:02:49]} 3. f3 {[%clk 0:03:00]}  Nbd7 {[%clk 0:02:49]} 4. Be3 {[%clk 0:03:00]}  e5 {[%clk 0:02:49]} 5. d5 {[%clk 0:03:00]}  c6 {[%clk 0:02:46]} 6. c4 {[%clk 0:03:00]}  a5 {[%clk 0:02:46]} 7. Nc3 {[%clk 0:03:00]}  Nc5 {[%clk 0:02:46]} 8. Nge2 {[%clk 0:02:58]}  g6 {[%clk 0:02:45]} 9. Qd2 {[%clk 0:02:49]}  Bg7 {[%clk 0:02:43]} 10. g4 {[%clk 0:02:43]}  h5 {[%clk 0:02:26]} 11. g5 {[%clk 0:02:40]}  Ng8 {[%clk 0:02:25]} 12. h4 {[%clk 0:02:34]}  Ne7 {[%clk 0:02:25]} 13. Bxc5 {[%clk 0:01:57]}  dxc5 {[%clk 0:02:24]} 14. d6 {[%clk 0:01:57]}  Ng8 {[%clk 0:02:24]} 15. Na4 {[%clk 0:01:51]}  b6 {[%clk 0:02:20]} 16. Bh3 {[%clk 0:01:41]}  Bxh3 {[%clk 0:02:17]} 17. Rxh3 {[%clk 0:01:40]}  Rb8 {[%clk 0:02:16]} 18. O-O-O {[%clk 0:01:35]}  Qd7 {[%clk 0:02:04]} 19. Rh2 {[%clk 0:01:29]}  f5 {[%clk 0:02:01]} 20. exf5 {[%clk 0:01:18]}  gxf5 {[%clk 0:01:59]} 21. Ng3 {[%clk 0:01:18]}  Kf7 {[%clk 0:01:14]} 22. Qd3 {[%clk 0:01:12]}  Kg6 {[%clk 0:01:14]} 23. Re2 {[%clk 0:01:07]}  Qe6 {[%clk 0:00:59]} 24. Nxb6 {[%clk 0:00:51]}  Rxb6 {[%clk 0:00:56]} 25. d7 {[%clk 0:00:50]}  Ne7 {[%clk 0:00:54]} 26. d8=Q {[%clk 0:00:49]}  Rxd8 {[%clk 0:00:53]} 27. Qxd8 {[%clk 0:00:49]}  Qxc4+ {[%clk 0:00:48]} 28. Rc2 {[%clk 0:00:49]}  Qf4+ {[%clk 0:00:48]} 29. Kb1 {[%clk 0:00:50]}  Qxg3 {[%clk 0:00:36]} 30. Qxb6 {[%clk 0:00:28]}  Qxh4 {[%clk 0:00:24]} 31. Qxc5 {[%clk 0:00:26]}  Kf7 {[%clk 0:00:12]} 32. g6+ {[%clk 0:00:20]}  Nxg6 {[%clk 0:00:05]} 33. Qc4+ {[%clk 0:00:18]}  Kf8 {[%clk 0:00:05]} 34. Qxc6 {[%clk 0:00:17]}  Ne7 {[%clk 0:00:05]} 35. Qe6 {[%clk 0:00:15]}  Nd5 {[%clk 0:00:01]} 36. Rxd5 {[%clk 0:00:13]} 1-0


[Site "https://www.chess.com"]

[Event "Titled Tuesday Blitz March 22 Late 2022"]
[White "Kovanova, Baira"]
[Black "Van den Dikkenberg, Erik"]
[WhiteFideId "4164083"]
[BlackFideId "1005880"]
[WhiteElo "2190"]
[BlackElo "2118"]
[Result "1-0"]
[Round "02"]
[TimeControl "180+1"]
[Date "2022.03.22"]
[WhiteClock "0:01:01"]
[BlackClock "0:00:57"]

1. e4 {[%clk 0:02:59]}  c5 {[%clk 0:02:59]} 2. Nf3 {[%clk 0:02:59]}  d6 {[%clk 0:02:59]} 3. d4 {[%clk 0:02:59]}  cxd4 {[%clk 0:03:00]} 4. Nxd4 {[%clk 0:02:59]}  Nf6 {[%clk 0:03:00]} 5. Nc3 {[%clk 0:03:00]}  a6 {[%clk 0:03:01]} 6. Be3 {[%clk 0:02:57]}  Ng4 {[%clk 0:03:00]} 7. Bc1 {[%clk 0:02:56]}  Nc6 {[%clk 0:02:59]} 8. Be2 {[%clk 0:02:53]}  Nf6 {[%clk 0:02:57]} 9. Bg5 {[%clk 0:02:46]}  Qb6 {[%clk 0:02:50]} 10. Bxf6 {[%clk 0:02:35]}  gxf6 {[%clk 0:02:43]} 11. Nb3 {[%clk 0:02:34]}  Be6 {[%clk 0:02:40]} 12. Qd2 {[%clk 0:02:30]}  a5 {[%clk 0:02:37]} 13. Nd5 {[%clk 0:02:23]}  Qd8 {[%clk 0:02:29]} 14. a3 {[%clk 0:02:16]}  h5 {[%clk 0:02:28]} 15. f4 {[%clk 0:02:02]}  f5 {[%clk 0:02:17]} 16. exf5 {[%clk 0:01:45]}  Bxf5 {[%clk 0:02:16]} 17. Nd4 {[%clk 0:01:45]}  Nxd4 {[%clk 0:02:05]} 18. Qxd4 {[%clk 0:01:44]}  f6 {[%clk 0:01:55]} 19. Bb5+ {[%clk 0:01:24]}  Kf7 {[%clk 0:01:54]} 20. Ne3 {[%clk 0:01:24]}  Qc8 {[%clk 0:01:40]} 21. O-O {[%clk 0:01:14]}  Bh6 {[%clk 0:01:31]} 22. Bc4+ {[%clk 0:01:09]}  Kg7 {[%clk 0:01:27]} 23. Rae1 {[%clk 0:01:05]}  Be6 {[%clk 0:01:07]} 24. Nd5 {[%clk 0:01:02]}  Bxd5 {[%clk 0:01:03]} 25. Rxe7+ {[%clk 0:01:01]}  Kf8 {[%clk 0:01:02]} 26. Qxf6+ {[%clk 0:01:01]}  Bf7 {[%clk 0:00:57]} 27. Qxf7# {[%clk 0:01:01]} 1-0


[Site "https://www.chess.com"]

[Event "Titled Tuesday Blitz March 22 Late 2022"]
[White "Kozin, Yuri"]
[Black "Gabrielian, Artur"]
[WhiteFideId "4129920"]
[BlackFideId "4131002"]
[WhiteElo "2518"]
[BlackElo "2440"]
[Result "1-0"]
[Round "02"]
[TimeControl "180+1"]
[Date "2022.03.22"]
[WhiteClock "0:00:21"]
[BlackClock "0:00:06"]

1. e4 {[%clk 0:03:00]}  c5 {[%clk 0:02:59]} 2. Nf3 {[%clk 0:03:01]}  d6 {[%clk 0:02:59]} 3. d4 {[%clk 0:03:01]}  cxd4 {[%clk 0:03:00]} 4. Nxd4 {[%clk 0:03:02]}  Nf6 {[%clk 0:03:01]} 5. Nc3 {[%clk 0:03:03]}  Nc6 {[%clk 0:03:01]} 6. Bc4 {[%clk 0:03:02]}  Qb6 {[%clk 0:03:00]} 7. Nb3 {[%clk 0:03:01]}  e6 {[%clk 0:03:01]} 8. Be3 {[%clk 0:03:02]}  Qc7 {[%clk 0:03:01]} 9. Bd3 {[%clk 0:03:02]}  Be7 {[%clk 0:03:01]} 10. f4 {[%clk 0:03:03]}  a6 {[%clk 0:03:01]} 11. Qf3 {[%clk 0:03:03]}  b5 {[%clk 0:03:01]} 12. g4 {[%clk 0:03:02]}  Bb7 {[%clk 0:03:01]} 13. g5 {[%clk 0:03:02]}  Nd7 {[%clk 0:03:02]} 14. O-O-O {[%clk 0:03:02]}  Nb4 {[%clk 0:03:00]} 15. Kb1 {[%clk 0:03:02]}  Nc5 {[%clk 0:02:58]} 16. f5 {[%clk 0:03:01]}  Nbxd3 {[%clk 0:02:49]} 17. cxd3 {[%clk 0:02:59]}  b4 {[%clk 0:02:46]} 18. Ne2 {[%clk 0:02:47]}  Nxb3 {[%clk 0:02:34]} 19. fxe6 {[%clk 0:02:45]}  O-O {[%clk 0:02:30]} 20. axb3 {[%clk 0:02:42]}  fxe6 {[%clk 0:02:31]} 21. Qg4 {[%clk 0:02:37]}  Bc8 {[%clk 0:02:29]} 22. Rc1 {[%clk 0:02:33]}  Qd7 {[%clk 0:02:28]} 23. g6 {[%clk 0:02:26]}  h6 {[%clk 0:02:19]} 24. Rhf1 {[%clk 0:02:19]}  Rxf1 {[%clk 0:02:18]} 25. Rxf1 {[%clk 0:02:18]}  e5 {[%clk 0:02:18]} 26. Qh5 {[%clk 0:02:11]}  Qg4 {[%clk 0:02:10]} 27. Ng3 {[%clk 0:01:58]}  Qxh5 {[%clk 0:02:08]} 28. Nxh5 {[%clk 0:01:58]}  Be6 {[%clk 0:02:09]} 29. d4 {[%clk 0:01:46]}  Bxb3 {[%clk 0:02:00]} 30. d5 {[%clk 0:01:40]}  Rf8 {[%clk 0:02:00]} 31. Rc1 {[%clk 0:01:35]}  a5 {[%clk 0:01:43]} 32. Ng3 {[%clk 0:01:32]}  Bd8 {[%clk 0:01:30]} 33. Nf5 {[%clk 0:01:22]}  Bxd5 {[%clk 0:01:24]} 34. exd5 {[%clk 0:01:22]}  Rxf5 {[%clk 0:01:23]} 35. Rc8 {[%clk 0:01:23]}  Rf8 {[%clk 0:01:22]} 36. Ka2 {[%clk 0:01:14]}  a4 {[%clk 0:01:22]} 37. Rc6 {[%clk 0:01:12]}  Be7 {[%clk 0:01:10]} 38. Rc7 {[%clk 0:01:09]}  Re8 {[%clk 0:01:07]} 39. Ra7 {[%clk 0:01:04]}  Bg5 {[%clk 0:01:02]} 40. Bf2 {[%clk 0:00:54]}  e4 {[%clk 0:01:01]} 41. Be1 {[%clk 0:00:54]}  a3 {[%clk 0:00:45]} 42. bxa3 {[%clk 0:00:53]}  bxa3 {[%clk 0:00:45]} 43. Kxa3 {[%clk 0:00:47]}  Be3 {[%clk 0:00:44]} 44. Rd7 {[%clk 0:00:44]}  Bc5+ {[%clk 0:00:39]} 45. Kb3 {[%clk 0:00:45]}  e3 {[%clk 0:00:39]} 46. Bc3 {[%clk 0:00:44]}  Rb8+ {[%clk 0:00:19]} 47. Kc2 {[%clk 0:00:41]}  Rc8 {[%clk 0:00:12]} 48. Rxg7+ {[%clk 0:00:32]}  Kf8 {[%clk 0:00:12]} 49. Rf7+ {[%clk 0:00:30]}  Ke8 {[%clk 0:00:12]} 50. Kd3 {[%clk 0:00:26]}  Bb6 {[%clk 0:00:11]} 51. Rh7 {[%clk 0:00:24]}  e2 {[%clk 0:00:08]} 52. Rh8+ {[%clk 0:00:20]}  Kd7 {[%clk 0:00:07]} 53. Rxc8 {[%clk 0:00:21]}  Kxc8 {[%clk 0:00:06]} 54. g7 {[%clk 0:00:21]} 1-0


[Site "https://www.chess.com"]

[Event "Titled Tuesday Blitz March 22 Late 2022"]
[White "Krstulovic, Alex"]
[Black "Kamsky, Gata"]
[WhiteFideId "760056"]
[BlackFideId "2000024"]
[WhiteElo "2193"]
[BlackElo "2645"]
[Result "0-1"]
[Round "02"]
[TimeControl "180+1"]
[Date "2022.03.22"]
[WhiteClock "0:00:47"]
[BlackClock "0:01:10"]

1. e4 {[%clk 0:03:00]}  e5 {[%clk 0:02:57]} 2. Nf3 {[%clk 0:03:00]}  Nc6 {[%clk 0:02:57]} 3. Bc4 {[%clk 0:03:00]}  Nf6 {[%clk 0:02:54]} 4. d3 {[%clk 0:03:00]}  h6 {[%clk 0:02:51]} 5. O-O {[%clk 0:02:55]}  d6 {[%clk 0:02:50]} 6. c3 {[%clk 0:02:42]}  g6 {[%clk 0:02:46]} 7. d4 {[%clk 0:02:18]}  Qe7 {[%clk 0:01:58]} 8. Re1 {[%clk 0:02:11]}  Bg7 {[%clk 0:01:57]} 9. dxe5 {[%clk 0:01:59]}  Nxe5 {[%clk 0:01:48]} 10. Nxe5 {[%clk 0:01:58]}  Qxe5 {[%clk 0:01:45]} 11. Be3 {[%clk 0:01:55]}  Ng4 {[%clk 0:01:37]} 12. f4 {[%clk 0:01:28]}  Nxe3 {[%clk 0:01:29]} 13. Qa4+ {[%clk 0:01:27]}  Bd7 {[%clk 0:01:29]} 14. Bxf7+ {[%clk 0:01:27]}  Ke7 {[%clk 0:01:23]} 15. Qb3 {[%clk 0:00:51]}  Qxf4 {[%clk 0:01:16]} 16. Bxg6 {[%clk 0:00:47]}  Rhf8 {[%clk 0:01:10]} 0-1


[Site "https://www.chess.com"]

[Event "Titled Tuesday Blitz March 22 Late 2022"]
[White "Lauridsen, Jesper Morch"]
[Black "Villegas, Pierre"]
[WhiteFideId "1401890"]
[BlackFideId "654183"]
[WhiteElo "2275"]
[BlackElo "2395"]
[Result "0-1"]
[Round "02"]
[TimeControl "180+1"]
[Date "2022.03.22"]
[WhiteClock "0:00:04"]
[BlackClock "0:00:21"]

1. e4 {[%clk 0:03:00]}  c6 {[%clk 0:02:59]} 2. d4 {[%clk 0:03:00]}  d5 {[%clk 0:02:59]} 3. Nd2 {[%clk 0:03:00]}  g6 {[%clk 0:02:57]} 4. Ngf3 {[%clk 0:02:59]}  Bg7 {[%clk 0:02:57]} 5. c3 {[%clk 0:02:54]}  Nh6 {[%clk 0:02:56]} 6. exd5 {[%clk 0:02:51]}  cxd5 {[%clk 0:02:53]} 7. Bb5+ {[%clk 0:02:51]}  Nc6 {[%clk 0:02:52]} 8. h3 {[%clk 0:02:50]}  O-O {[%clk 0:02:51]} 9. Bxc6 {[%clk 0:02:49]}  bxc6 {[%clk 0:02:51]} 10. O-O {[%clk 0:02:49]}  Nf5 {[%clk 0:02:48]} 11. Nb3 {[%clk 0:02:49]}  Qc7 {[%clk 0:02:40]} 12. Re1 {[%clk 0:02:48]}  a5 {[%clk 0:02:40]} 13. a4 {[%clk 0:02:45]}  Nd6 {[%clk 0:02:36]} 14. Bf4 {[%clk 0:02:41]}  Bf5 {[%clk 0:02:32]} 15. Nc5 {[%clk 0:02:35]}  Qa7 {[%clk 0:02:21]} 16. g4 {[%clk 0:02:19]}  Bc8 {[%clk 0:02:12]} 17. Qe2 {[%clk 0:02:06]}  Ne4 {[%clk 0:01:50]} 18. Nxe4 {[%clk 0:02:03]}  dxe4 {[%clk 0:01:50]} 19. Qxe4 {[%clk 0:02:03]}  e6 {[%clk 0:01:48]} 20. Ne5 {[%clk 0:02:00]}  Bb7 {[%clk 0:01:47]} 21. Nxc6 {[%clk 0:01:41]}  Qb6 {[%clk 0:01:37]} 22. Ne7+ {[%clk 0:01:39]}  Kh8 {[%clk 0:01:38]} 23. Qe3 {[%clk 0:01:31]}  Rfe8 {[%clk 0:01:29]} 24. Bg5 {[%clk 0:01:18]}  f6 {[%clk 0:01:18]} 25. Qxe6 {[%clk 0:01:09]}  Qxe6 {[%clk 0:01:19]} 26. Rxe6 {[%clk 0:01:09]}  fxg5 {[%clk 0:01:19]} 27. Rae1 {[%clk 0:01:09]}  Rf8 {[%clk 0:01:05]} 28. d5 {[%clk 0:01:07]}  Rad8 {[%clk 0:01:03]} 29. d6 {[%clk 0:00:59]}  Rf3 {[%clk 0:01:02]} 30. c4 {[%clk 0:00:48]}  Rxh3 {[%clk 0:01:00]} 31. Nd5 {[%clk 0:00:48]}  Bxd5 {[%clk 0:00:39]} 32. cxd5 {[%clk 0:00:36]}  Rf3 {[%clk 0:00:39]} 33. Re8+ {[%clk 0:00:33]}  Rf8 {[%clk 0:00:39]} 34. R8e6 {[%clk 0:00:25]}  Rf6 {[%clk 0:00:32]} 35. Re8+ {[%clk 0:00:20]}  Rf8 {[%clk 0:00:32]} 36. R8e6 {[%clk 0:00:19]}  Rd7 {[%clk 0:00:28]} 37. b3 {[%clk 0:00:18]}  Rfd8 {[%clk 0:00:27]} 38. Re8+ {[%clk 0:00:17]}  Bf8 {[%clk 0:00:27]} 39. R1e6 {[%clk 0:00:12]}  Kg8 {[%clk 0:00:22]} 40. Rxd8 {[%clk 0:00:04]}  Rxd8 {[%clk 0:00:23]} 41. Re5 {[%clk 0:00:04]}  Bxd6 {[%clk 0:00:21]} 0-1


[Site "https://www.chess.com"]

[Event "Titled Tuesday Blitz March 22 Late 2022"]
[White "Lazavik, Denis"]
[Black "Nazaretyan, Tigran"]
[WhiteFideId "13515110"]
[BlackFideId "24162345"]
[WhiteElo "2437"]
[BlackElo "2219"]
[Result "1-0"]
[Round "02"]
[TimeControl "180+1"]
[Date "2022.03.22"]
[WhiteClock "0:02:12"]
[BlackClock "0:01:10"]

1. d4 {[%clk 0:03:00]}  Nf6 {[%clk 0:02:55]} 2. c4 {[%clk 0:03:01]}  d6 {[%clk 0:02:50]} 3. Nf3 {[%clk 0:03:01]}  Nbd7 {[%clk 0:02:50]} 4. Nc3 {[%clk 0:02:59]}  e5 {[%clk 0:02:50]} 5. g3 {[%clk 0:03:00]}  c6 {[%clk 0:02:49]} 6. e4 {[%clk 0:03:00]}  Be7 {[%clk 0:02:47]} 7. Bg2 {[%clk 0:03:00]}  O-O {[%clk 0:02:47]} 8. O-O {[%clk 0:03:00]}  a6 {[%clk 0:02:46]} 9. a4 {[%clk 0:02:55]}  a5 {[%clk 0:02:41]} 10. h3 {[%clk 0:02:55]}  Re8 {[%clk 0:02:41]} 11. Be3 {[%clk 0:02:55]}  Bf8 {[%clk 0:02:41]} 12. Qc2 {[%clk 0:02:55]}  h6 {[%clk 0:02:39]} 13. Rad1 {[%clk 0:02:55]}  Qc7 {[%clk 0:02:38]} 14. Rfe1 {[%clk 0:02:47]}  exd4 {[%clk 0:02:35]} 15. Nxd4 {[%clk 0:02:47]}  Nc5 {[%clk 0:02:29]} 16. f4 {[%clk 0:02:47]}  Bd7 {[%clk 0:02:13]} 17. Bf2 {[%clk 0:02:47]}  Rad8 {[%clk 0:02:12]} 18. b3 {[%clk 0:02:45]}  Bc8 {[%clk 0:02:11]} 19. g4 {[%clk 0:02:46]}  g5 {[%clk 0:02:09]} 20. Be3 {[%clk 0:02:40]}  gxf4 {[%clk 0:02:06]} 21. Bxf4 {[%clk 0:02:41]}  Nfd7 {[%clk 0:02:01]} 22. Nf5 {[%clk 0:02:40]}  Ne5 {[%clk 0:01:59]} 23. Nxh6+ {[%clk 0:02:37]}  Kh7 {[%clk 0:01:53]} 24. Nf5 {[%clk 0:02:35]}  Qb6 {[%clk 0:01:41]} 25. Qf2 {[%clk 0:02:34]}  Qxb3 {[%clk 0:01:39]} 26. Bxe5 {[%clk 0:02:32]}  dxe5 {[%clk 0:01:34]} 27. Qh4+ {[%clk 0:02:29]}  Kg8 {[%clk 0:01:29]} 28. Qg5+ {[%clk 0:02:26]}  Kh7 {[%clk 0:01:27]} 29. Rxd8 {[%clk 0:02:21]}  Qxc3 {[%clk 0:01:27]} 30. Rxe8 {[%clk 0:02:13]}  Qxe1+ {[%clk 0:01:26]} 31. Kh2 {[%clk 0:02:13]}  Nxe4 {[%clk 0:01:11]} 32. Qh5+ {[%clk 0:02:11]}  Kg8 {[%clk 0:01:11]} 33. Rxf8+ {[%clk 0:02:12]}  Kxf8 {[%clk 0:01:10]} 34. Qh8# {[%clk 0:02:12]} 1-0


[Site "https://www.chess.com"]

[Event "Titled Tuesday Blitz March 22 Late 2022"]
[White "Lin, Dachey"]
[Black "Tsukerman, Julia"]
[WhiteFideId "2029650"]
[BlackFideId "2621649"]
[WhiteElo "2313"]
[BlackElo "2110"]
[Result "1-0"]
[Round "02"]
[TimeControl "180+1"]
[Date "2022.03.22"]
[WhiteClock "0:01:16"]
[BlackClock "0:00:19"]

1. g4 {[%clk 0:03:00]}  d5 {[%clk 0:02:59]} 2. Bg2 {[%clk 0:03:01]}  Bxg4 {[%clk 0:02:59]} 3. c4 {[%clk 0:03:01]}  c6 {[%clk 0:02:49]} 4. Qb3 {[%clk 0:03:00]}  Qd7 {[%clk 0:02:21]} 5. cxd5 {[%clk 0:03:00]}  Nf6 {[%clk 0:02:14]} 6. Nc3 {[%clk 0:02:59]}  e6 {[%clk 0:02:03]} 7. h3 {[%clk 0:02:56]}  Bf5 {[%clk 0:02:03]} 8. e4 {[%clk 0:02:55]}  Bg6 {[%clk 0:01:49]} 9. dxe6 {[%clk 0:02:55]}  fxe6 {[%clk 0:01:46]} 10. Nge2 {[%clk 0:02:55]}  Bc5 {[%clk 0:01:43]} 11. d4 {[%clk 0:02:53]}  Bb6 {[%clk 0:01:43]} 12. Be3 {[%clk 0:02:45]}  O-O {[%clk 0:01:42]} 13. O-O-O {[%clk 0:02:39]}  Qe7 {[%clk 0:01:39]} 14. Na4 {[%clk 0:02:30]}  Nbd7 {[%clk 0:01:35]} 15. f3 {[%clk 0:02:28]}  Rad8 {[%clk 0:01:31]} 16. Kb1 {[%clk 0:02:26]}  Bf7 {[%clk 0:01:31]} 17. Nxb6 {[%clk 0:02:22]}  Nxb6 {[%clk 0:01:31]} 18. Qc3 {[%clk 0:02:19]}  Rfe8 {[%clk 0:01:28]} 19. Bg5 {[%clk 0:02:17]}  Qc7 {[%clk 0:01:17]} 20. Bf4 {[%clk 0:01:56]}  Qe7 {[%clk 0:01:16]} 21. Rhg1 {[%clk 0:01:54]}  Kh8 {[%clk 0:01:15]} 22. h4 {[%clk 0:01:54]}  Rc8 {[%clk 0:01:04]} 23. Bh3 {[%clk 0:01:52]}  Rcd8 {[%clk 0:01:03]} 24. Bg5 {[%clk 0:01:50]}  h6 {[%clk 0:00:52]} 25. Bf4 {[%clk 0:01:46]}  Nbd7 {[%clk 0:00:49]} 26. Qe3 {[%clk 0:01:42]}  Kh7 {[%clk 0:00:44]} 27. Bc7 {[%clk 0:01:16]}  Rc8 {[%clk 0:00:42]} 28. Ba5 {[%clk 0:01:16]}  b6 {[%clk 0:00:38]} 29. Bd2 {[%clk 0:01:16]}  Rcd8 {[%clk 0:00:35]} 30. Rxg7+ {[%clk 0:01:15]}  Kxg7 {[%clk 0:00:18]} 31. Qxh6+ {[%clk 0:01:16]}  Kg8 {[%clk 0:00:19]} 32. Rg1+ {[%clk 0:01:16]} 1-0


[Site "https://www.chess.com"]